[Event "SWE-ch 2019"]
[Site "Eskilstuna"]
[Date "2019.07.09"]
[Round "4.1"]
[White "Lokander, Martin"]
[Black "Sagit, Rauan"]
[Result "1/2-1/2"]
[ECO "D31"]
[WhiteElo "2397"]
[BlackElo "2429"]
[Annotator "NA"]
[PlyCount "152"]
[EventDate "2019.07.06"]
[EventType "tourn"]
[EventCountry "SWE"]
[SourceTitle "playchess.com"]
[Source "ChessBase"]
[SourceQuality "1"]
[TimeControl "40/5400+30:1800+30"]

1. d4 {[%emt 0:00:00]} d5 {[%emt 0:00:00]} 2. c4 {[%emt 0:00:00]} e6 {[%emt 0:00:00]} 3. Nc3 {[%emt 0:00:13]} a6 {[%emt 0:00:03]} 4. cxd5 {[%emt 0:00:48]} exd5 {[%emt 0:00:07]} 5. Qb3 {[%emt 0:00:28]} Nc6 {[%emt 0:01:29]} 6. Nf3 {[%emt 0:00:29]} Bb4 {[%emt 0:00:26]} 7. Bf4 {[%emt 0:01:21]} Nge7 {[%emt 0:00:52]} 8. e3 {[%emt 0:00:53]} Bf5 {[%emt 0:00:29]} 9. Be2 {[%emt 0:01:01]} O-O {[%emt 0:00:29]} 10. O-O {[%emt 0:01:01]} Kh8 {[%emt 0:00:42]} 11. Ne5 {[%emt 0:03:29]} Bd6 {[%emt 0:06:05]} 12. Nxc6 {[%emt 0:05:26]} bxc6 {[%emt 0:00:49]} 13. Na4 {[%emt 0:04:28]} Bxf4 {[%emt 0:02:08]} 14. exf4 {[%emt 0:00:22]} Qd6 {[%emt 0:03:49]} 15. g3 {[%emt 0:01:14]} Rfb8 {[%emt 0:00:24]} 16. Qc3 {[%emt 0:02:59]} Qb4 {[%emt 0:01:33]} 17. b3 {[%emt 0:05:21]} Qxc3 {[%emt 0:02:08]} 18. Nxc3 {[%emt 0:00:09]} Rb4 {[%emt 0:02:34]} 19. Rfd1 {[%emt 0:00:16]} a5 {[%emt 0:03:49]} 20. Na4 {[%emt 0:05:17]} Re8 {[%emt 0:07:01]} 21. Rd2 {[%emt 0:01:41]} Bh3 {[%emt 0:09:47]} 22. Bf1 {[%emt 0:07:26]} Bxf1 {[%emt 0:00:59]} 23. Kxf1 {[%emt 0:00:02]} Nf5 {[%emt 0:00:32]} 24. Rad1 {[%emt 0:00:15]} h5 {[%emt 0:10:05]} 25. Nc5 {[%emt 0:00:56]} f6 {[%emt 0:01:48]} 26. h3 {[%emt 0:02:43]} Rb5 {[%emt 0:12:47]} 27. Rc1 {[%emt 0:03:02]} Rb4 {[%emt 0:01:37]} 28. Rcd1 {[%emt 0:00:04]} Rb5 {[%emt 0:00:11]} 29. Na4 {[%emt 0:04:45]} Rb4 {[%emt 0:03:05]} 30. Kg2 {[%emt 0:06:18]} Re4 {[%emt 0:06:05]} 31. Nc5 {[%emt 0:01:03]} Rexd4 {[%emt 0:05:04]} 32. Rxd4 {[%emt 0:00:05]} Nxd4 {[%emt 0:00:30]} 33. Na6 {[%emt 0:00:19]} Rb6 {[%emt 0:00:17]} 34. Nxc7 {[%emt 0:00:09]} Nb5 {[%emt 0:01:14]} 35. Nxb5 {[%emt 0:00:34]} Rxb5 {[%emt 0:00:13]} 36. Rc1 {[%emt 0:00:10]} Rb6 {[%emt 0:01:18]} 37. Kf3 {[%emt 0:12:16]} Kg8 {[%emt 0:01:01]} 38. Ke3 {[%emt 0:00:54]} Kf7 {[%emt 0:00:45]} 39. Kd4 {[%emt 0:00:49]} Ke6 {[%emt 0:02:30]} 40. Kc5 {[%emt 0:00:17]} Rb8 {[%emt 0:00:49]} 41. Rc3 {[%emt 0:34:13]} Kd7 {[%emt 0:32:54]} 42. f5 {[%emt 0:07:01]} Rb5+ {[%emt 0:02:43]} 43. Kd4 {[%emt 0:00:02]} Kd6 {[%emt 0:00:31]} 44. Re3 {[%emt 0:00:37]} c5+ {[%emt 0:01:11]} 45. Kd3 {[%emt 0:00:04]} a4 {[%emt 0:01:36]} 46. Re6+ {[%emt 0:02:54]} Kd7 {[%emt 0:00:13]} 47. Kc3 {[%emt 0:01:02]} axb3 {[%emt 0:00:31]} 48. axb3 {[%emt 0:00:04]} Ra5 {[%emt 0:02:55]} 49. Kb2 {[%emt 0:02:08]} Rb5 {[%emt 0:03:36]} 50. Kc3 {[%emt 0:00:12]} Ra5 {[%emt 0:00:52]} 51. Kb2 {[%emt 0:00:02]} c4 {[%emt 0:00:00]} 52. bxc4 {[%emt 0:00:00]} dxc4 {[%emt 0:00:00]} 53. g4 {[%emt 0:00:00]} Rb5+ {[%emt 0:00:00]} 54. Kc3 {[%emt 0:00:00]} Rb3+ {[%emt 0:00:00]} 55. Kxc4 {[%emt 0:00:00]} Rxh3 {[%emt 0:00:00]} 56. g5 {[%emt 0:00:00]} fxg5 {[%emt 0:00:00]} 57. Rg6 {[%emt 0:00:00]} Ke7 {[%emt 0:00:00]} 58. Kd4 {[%emt 0:00:00]} g4 {[%emt 0:00:00]} 59. Ke4 {[%emt 0:00:00]} Kf7 {[%emt 0:00:00]} 60. Rg5 {[%emt 0:00:00]} Kf6 {[%emt 0:00:00]} 61. Rg6+ {[%emt 0:00:00]} Kf7 {[%emt 0:00:04]} 62. Rg5 {[%emt 0:00:00]} Rh2 {[%emt 0:01:23]} 63. f3 {[%emt 0:00:04]} Re2+ {[%emt 0:01:12]} 64. Kf4 {[%emt 0:00:49]} Rf2 {[%emt 0:00:34]} 65. Rxh5 {[%emt 0:00:05]} gxf3 {[%emt 0:00:11]} 66. Rh1 {[%emt 0:00:29]} Kf6 {[%emt 0:00:55]} 67. Kg3 {[%emt 0:00:11]} Ra2 {[%emt 0:01:04]} 68. Kxf3 {[%emt 0:00:04]} Kxf5 {[%emt 0:00:17]} 69. Rb1 {[%emt 0:00:23]} Ra3+ {[%emt 0:00:25]} 70. Kg2 {[%emt 0:00:04]} g5 {[%emt 0:00:51]} 71. Rb4 {[%emt 0:00:09]} Kg6 {[%emt 0:00:14]} 72. Rc4 {[%emt 0:00:05]} Kh5 {[%emt 0:00:33]} 73. Rb4 {[%emt 0:00:02]} g4 {[%emt 0:00:23]} 74. Rb8 {[%emt 0:00:04]} Ra2+ {[%emt 0:00:17]} 75. Kg3 {[%emt 0:00:06]} Ra3+ {[%emt 0:00:05]} 76. Kg2 {[%emt 0:00:02]} Ra2+ {[%emt 0:00:39]} 1/2-1/2

[Event "SWE-ch 2019"]
[Site "Eskilstuna"]
[Date "2019.07.09"]
[Round "4.3"]
[White "Wiedenkeller, Michael"]
[Black "Smith, Axel"]
[Result "1-0"]
[ECO "E69"]
[WhiteElo "2461"]
[BlackElo "2469"]
[Annotator "ChessBase"]
[PlyCount "61"]
[EventDate "2019.07.06"]
[EventType "tourn"]
[EventCountry "SWE"]
[SourceTitle "playchess.com"]
[Source "ChessBase"]
[SourceQuality "1"]
[TimeControl "40/5400+30:1800+30"]

1. d4 {[%emt 0:00:00]} Nf6 {[%emt 0:00:00]} 2. c4 {[%emt 0:00:00]} g6 {[%emt 0:00:00]} 3. g3 {[%emt 0:00:20]} Bg7 {[%emt 0:00:00]} 4. Bg2 {[%emt 0:00:10]} O-O {[%emt 0:00:00]} 5. Nc3 {[%emt 0:00:16]} d6 {[%emt 0:00:00]} 6. Nf3 {[%emt 0:00:13]} c6 {[%emt 0:00:00]} 7. O-O {[%emt 0:00:23]} Nbd7 {[%emt 0:00:00]} 8. h3 {[%emt 0:00:35]} e5 {[%emt 0:00:00]} 9. e4 {[%emt 0:00:29]} Qa5 {[%emt 0:00:05]} 10. Re1 {[%emt 0:01:02]} exd4 {[%emt 0:00:04]} 11. Nxd4 {[%emt 0:00:16]} Ne5 {[%emt 0:00:05]} 12. Bf1 {[%emt 0:01:32]} Re8 {[%emt 0:00:02]} 13. Be3 {[%emt 0:02:06]} c5 {[%emt 0:02:16]} 14. Nb3 {[%emt 0:03:40]} Qb4 {[%emt 0:00:04]} 15. Qxd6 {[%emt 0:02:24]} Nf3+ {[%emt 0:02:07]} 16. Kh1 {[%emt 0:02:56]} Nxe1 {[%emt 0:00:04]} 17. Bxc5 {[%emt 0:01:22]} Qxc3 {[%emt 0:00:31]} 18. bxc3 {[%emt 0:00:22]} Nxe4 {[%emt 0:00:07]} 19. Qf4 {[%emt 0:01:37]} Nxc5 {[%emt 0:49:20]} 20. Nxc5 {[%emt 0:00:45]} Bf5 {[%emt 0:14:51]} 21. g4 {[%emt 0:15:12]} Bc2 {[%emt 0:00:00]} 22. Bg2 {[%emt 0:18:30]} Bxc3 {[%emt 0:00:00]} 23. Rc1 {[%emt 0:01:29]} Bb2 {[%emt 0:00:00]} 24. Bd5 {[%emt 0:02:35]} Re7 {[%emt 0:00:23]} 25. Rxc2 Nxc2 {[%emt 0:00:02]} 26. Qd2 {[%emt 0:07:31]} Bd4 {[%emt 0:09:49]} 27. Ne4 {[%emt 0:02:02]} Bxf2 {[%emt 0:00:54]} 28. Qxf2 {[%emt 0:00:32]} Nb4 {[%emt 0:00:09]} 29. Nf6+ {[%emt 0:05:42]} Kf8 {[%emt 0:05:14]} 30. Qd2 {[%emt 0:00:41]} Nxd5 {[%emt 0:02:10]} 31. Qh6# {[%emt 0:00:17]} 1-0

[Event "SWE-ch 2019"]
[Site "Eskilstuna"]
[Date "2019.07.09"]
[Round "4.4"]
[White "Hillarp Persson, Tiger"]
[Black "Kucuksari, Kaan"]
[Result "1-0"]
[ECO "A37"]
[WhiteElo "2562"]
[BlackElo "2310"]
[Annotator "ChessBase"]
[PlyCount "61"]
[EventDate "2019.07.06"]
[EventType "tourn"]
[EventCountry "SWE"]
[SourceTitle "playchess.com"]
[Source "ChessBase"]
[SourceQuality "1"]
[TimeControl "40/5400+30:1800+30"]

1. c4 {[%emt 0:00:00]} c5 {[%emt 0:00:00]} 2. g3 {[%emt 0:01:24]} Nc6 {[%emt 0:00:29]} 3. Bg2 {[%emt 0:00:12]} g6 {[%emt 0:00:05]} 4. Nc3 {[%emt 0:02:24]} Bg7 {[%emt 0:00:03]} 5. Nf3 {[%emt 0:00:32]} d6 {[%emt 0:00:40]} 6. O-O {[%emt 0:00:23]} e5 {[%emt 0:00:03]} 7. a3 {[%emt 0:00:22]} Nge7 {[%emt 0:01:08]} 8. b4 {[%emt 0:01:46]} cxb4 {[%emt 0:00:25]} 9. axb4 {[%emt 0:00:10]} Nxb4 {[%emt 0:00:10]} 10. Ba3 {[%emt 0:02:22]} Nbc6 {[%emt 0:01:29]} 11. Ne4 {[%emt 0:01:05]} O-O {[%emt 0:00:23]} 12. Nxd6 {[%emt 0:00:21]} Rb8 {[%emt 0:03:29]} 13. e3 {[%emt 0:24:44]} b6 {[%emt 0:04:40]} 14. h3 {[%emt 0:05:40]} Qd7 {[%emt 0:07:10]} 15. d4 exd4 {[%emt 0:05:37]} 16. exd4 {[%emt 0:19:17]} Rd8 {[%emt 0:00:24]} 17. d5 {[%emt 0:05:49]} Na5 {[%emt 0:06:57]} 18. Ng5 {[%emt 0:15:24]} Nf5 {[%emt 0:11:30]} 19. Ngxf7 {[%emt 0:03:21]} Nxd6 {[%emt 0:04:05]} 20. Nxd6 {[%emt 0:00:12]} Ba6 {[%emt 0:02:24]} 21. Re1 {[%emt 0:00:35]} Bxc4 {[%emt 0:04:27]} 22. Nxc4 {[%emt 0:02:22]} Nxc4 {[%emt 0:00:03]} 23. Re7 {[%emt 0:00:31]} Qf5 {[%emt 0:01:20]} 24. Bb4 {[%emt 0:04:12]} Bf8 {[%emt 0:18:17]} 25. Raxa7 {[%emt 0:01:10]} Bxe7 {[%emt 0:00:17]} 26. Rxe7 {[%emt 0:00:22]} Qf6 {[%emt 0:05:26]} 27. Qe1 {[%emt 0:02:39]} Qf5 {[%emt 0:06:31]} 28. g4 {[%emt 0:01:54]} Qf6 {[%emt 0:03:13]} 29. Bc3 {[%emt 0:01:51]} Qd6 {[%emt 0:00:02]} 30. Qe4 {[%emt 0:01:37]} Nd2 {[%emt 0:02:27]} 31. Bxd2 {[%emt 0:00:52]} 1-0

[Event "SWE-ch 2019"]
[Site "Eskilstuna"]
[Date "2019.07.09"]
[Round "4.5"]
[White "Hector, Jonny"]
[Black "Cramling, Pia"]
[Result "1/2-1/2"]
[ECO "B46"]
[WhiteElo "2487"]
[BlackElo "2479"]
[Annotator "ChessBase"]
[PlyCount "71"]
[EventDate "2019.07.06"]
[EventType "tourn"]
[EventCountry "SWE"]
[SourceTitle "playchess.com"]
[Source "ChessBase"]
[SourceQuality "1"]
[TimeControl "40/5400+30:1800+30"]

1. e4 {[%emt 0:00:01]} c5 {[%emt 0:00:25]} 2. Nf3 {[%emt 0:00:05]} Nc6 {[%emt 0:00:09]} 3. d4 {[%emt 0:00:05]} cxd4 {[%emt 0:00:05]} 4. Nxd4 {[%emt 0:00:07]} e6 {[%emt 0:00:18]} 5. Nc3 {[%emt 0:00:27]} a6 {[%emt 0:01:25]} 6. Nxc6 {[%emt 0:01:10]} bxc6 {[%emt 0:00:07]} 7. Bd3 {[%emt 0:01:11]} d5 {[%emt 0:00:21]} 8. O-O {[%emt 0:01:19]} Nf6 {[%emt 0:00:16]} 9. Qf3 {[%emt 0:04:39]} Be7 {[%emt 0:01:42]} 10. Qg3 {[%emt 0:00:39]} Nh5 {[%emt 0:02:31]} 11. Qh3 {[%emt 0:02:18]} g6 {[%emt 0:02:30]} 12. Be2 {[%emt 0:09:49]} Ng7 {[%emt 0:22:21]} 13. Bh6 {[%emt 0:04:17]} O-O {[%emt 0:00:12]} 14. Rad1 {[%emt 0:06:59]} Bd6 {[%emt 0:12:44]} 15. Na4 {[%emt 0:03:39]} Qc7 {[%emt 0:06:59]} 16. f4 {[%emt 0:19:33]} Re8 {[%emt 0:06:43]} 17. Qe3 {[%emt 0:08:04]} Bf8 {[%emt 0:14:57]} 18. c4 {[%emt 0:01:25]} Bd7 {[%emt 0:03:26]} 19. Nb6 {[%emt 0:06:24]} Rab8 {[%emt 0:01:19]} 20. Bxg7 {[%emt 0:02:51]} Kxg7 {[%emt 0:02:06]} 21. Nxd7 {[%emt 0:00:41]} Qxd7 {[%emt 0:00:03]} 22. b3 {[%emt 0:03:17]} Kg8 {[%emt 0:01:00]} 23. Kh1 {[%emt 0:01:12]} Qc7 {[%emt 0:00:46]} 24. cxd5 {[%emt 0:04:28]} exd5 {[%emt 0:00:29]} 25. e5 {[%emt 0:00:10]} a5 {[%emt 0:01:25]} 26. h4 {[%emt 0:02:02]} Rb4 {[%emt 0:02:43]} 27. Qg3 {[%emt 0:00:51]} a4 {[%emt 0:01:06]} 28. h5 {[%emt 0:00:39]} axb3 {[%emt 0:03:32]} 29. axb3 {[%emt 0:00:06]} Bg7 {[%emt 0:00:30]} 30. Rd3 {[%emt 0:00:36]} Qe7 {[%emt 0:02:58]} 31. hxg6 {[%emt 0:03:23]} hxg6 {[%emt 0:00:06]} 32. Bg4 {[%emt 0:01:34]} Re4 {[%emt 0:02:07]} 33. Bf3 {[%emt 0:01:34]} Rb4 {[%emt 0:00:05]} 34. Bg4 {[%emt 0:00:16]} Re4 {[%emt 0:01:08]} 35. Bf3 {[%emt 0:03:26]} Rb4 {[%emt 0:00:07]} 36. Bg4 {[%emt 0:00:32]} 1/2-1/2

[Event "SWE-ch 2019"]
[Site "Eskilstuna"]
[Date "2019.07.10"]
[Round "5.1"]
[White "Blomqvist, Erik"]
[Black "Lokander, Martin"]
[Result "1-0"]
[ECO "C77"]
[WhiteElo "2492"]
[BlackElo "2397"]
[Annotator "ChessBase"]
[PlyCount "67"]
[EventDate "2019.07.06"]
[EventType "tourn"]
[EventCountry "SWE"]
[SourceTitle "playchess.com"]
[Source "ChessBase"]
[SourceQuality "1"]
[TimeControl "40/5400+30:1800+30"]

1. e4 {[%emt 0:00:00]} e5 {[%emt 0:00:00]} 2. Nf3 {[%emt 0:00:00]} Nc6 {[%emt 0:00:00]} 3. Bb5 {[%emt 0:00:05]} a6 {[%emt 0:00:00]} 4. Ba4 {[%emt 0:00:05]} Nf6 {[%emt 0:00:00]} 5. d3 {[%emt 0:00:19]} d6 {[%emt 0:00:01]} 6. c3 {[%emt 0:01:09]} g6 {[%emt 0:00:22]} 7. h3 {[%emt 0:00:17]} Bg7 {[%emt 0:00:10]} 8. Be3 {[%emt 0:00:13]} O-O {[%emt 0:01:24]} 9. O-O {[%emt 0:00:14]} Bd7 {[%emt 0:08:34]} 10. Nbd2 {[%emt 0:00:31]} Re8 {[%emt 0:06:40]} 11. Re1 {[%emt 0:02:58]} Qe7 {[%emt 0:02:21]} 12. a3 {[%emt 0:03:06]} Nh5 {[%emt 0:09:00]} 13. d4 {[%emt 0:05:22]} Rad8 {[%emt 0:14:12]} 14. Rc1 {[%emt 0:08:01]} Qf8 {[%emt 0:05:28]} 15. b4 {[%emt 0:04:09]} Bh6 {[%emt 0:02:58]} 16. d5 {[%emt 0:01:22]} Nb8 {[%emt 0:06:52]} 17. c4 {[%emt 0:04:44]} Bxe3 {[%emt 0:01:51]} 18. Rxe3 {[%emt 0:00:06]} Bxa4 {[%emt 0:06:33]} 19. Qxa4 {[%emt 0:00:06]} Nd7 {[%emt 0:00:01]} 20. Qc2 {[%emt 0:27:06]} c6 {[%emt 0:08:56]} 21. dxc6 {[%emt 0:02:45]} bxc6 {[%emt 0:00:04]} 22. Qa4 {[%emt 0:05:54]} Nb8 {[%emt 0:00:16]} 23. c5 {[%emt 0:00:14]} dxc5 {[%emt 0:06:09]} 24. Rxc5 {[%emt 0:00:06]} Nf4 {[%emt 0:00:22]} 25. Nc4 {[%emt 0:04:58]} f6 {[%emt 0:10:54]} 26. Na5 {[%emt 0:00:30]} Re6 {[%emt 0:00:11]} 27. g3 {[%emt 0:05:48]} Nxh3+ {[%emt 0:01:36]} 28. Kg2 {[%emt 0:00:06]} Ng5 {[%emt 0:00:38]} 29. Nxg5 {[%emt 0:00:28]} fxg5 {[%emt 0:00:04]} 30. Qb3 {[%emt 0:00:29]} Qf7 {[%emt 0:03:28]} 31. Rf3 {[%emt 0:00:30]} Qe7 {[%emt 0:00:04]} 32. Nxc6 {[%emt 0:08:26]} Nxc6 {[%emt 0:00:02]} 33. Rxc6 {[%emt 0:00:03]} Re8 {[%emt 0:00:03]} 34. Rxa6 {[%emt 0:00:31]} 1-0

[Event "SWE-ch 2019"]
[Site "Eskilstuna"]
[Date "2019.07.10"]
[Round "5.2"]
[White "Sagit, Rauan"]
[Black "Wiedenkeller, Michael"]
[Result "1-0"]
[ECO "A07"]
[WhiteElo "2429"]
[BlackElo "2461"]
[Annotator "ChessBase"]
[PlyCount "232"]
[EventDate "2019.07.06"]
[EventType "tourn"]
[EventCountry "SWE"]
[SourceTitle "playchess.com"]
[Source "ChessBase"]
[SourceQuality "1"]
[TimeControl "40/5400+30:1800+30"]

1. Nf3 {[%emt 0:00:00]} d5 {[%emt 0:00:00]} 2. g3 {[%emt 0:00:00]} c6 {[%emt 0:00:19]} 3. Bg2 {[%emt 0:00:26]} Bg4 {[%emt 0:00:22]} 4. h3 {[%emt 0:00:28]} Bxf3 {[%emt 0:01:17]} 5. Bxf3 {[%emt 0:00:19]} e5 {[%emt 0:01:35]} 6. d3 {[%emt 0:00:24]} Nf6 {[%emt 0:00:41]} 7. e3 {[%emt 0:00:39]} Bd6 {[%emt 0:05:20]} 8. Nc3 {[%emt 0:01:03]} O-O {[%emt 0:02:13]} 9. O-O {[%emt 0:00:46]} Nbd7 {[%emt 0:02:48]} 10. Bg2 {[%emt 0:00:31]} Re8 {[%emt 0:01:24]} 11. e4 {[%emt 0:00:46]} dxe4 {[%emt 0:01:03]} 12. Nxe4 {[%emt 0:01:03]} Nxe4 {[%emt 0:03:55]} 13. dxe4 {[%emt 0:03:50]} Bc5 {[%emt 0:00:46]} 14. c3 {[%emt 0:00:41]} a5 {[%emt 0:01:19]} 15. Rb1 {[%emt 0:01:54]} Qe7 {[%emt 0:04:37]} 16. Qe2 {[%emt 0:02:39]} Qe6 {[%emt 0:03:47]} 17. b3 {[%emt 0:01:30]} h6 {[%emt 0:00:37]} 18. Rd1 {[%emt 0:01:13]} Red8 {[%emt 0:02:22]} 19. Bd2 {[%emt 0:03:14]} Nf6 {[%emt 0:02:49]} 20. Be1 {[%emt 0:00:52]} Bb6 {[%emt 0:02:35]} 21. Rxd8+ {[%emt 0:02:53]} Rxd8 {[%emt 0:00:51]} 22. Rd1 {[%emt 0:00:52]} Rxd1 {[%emt 0:03:13]} 23. Qxd1 {[%emt 0:00:09]} Qd7 {[%emt 0:01:40]} 24. Qxd7 {[%emt 0:00:40]} Nxd7 {[%emt 0:00:03]} 25. Kf1 {[%emt 0:00:44]} Kf8 {[%emt 0:00:53]} 26. Ke2 {[%emt 0:00:37]} Ke7 {[%emt 0:01:50]} 27. h4 {[%emt 0:05:18]} h5 {[%emt 0:05:39]} 28. Bd2 {[%emt 0:01:45]} Nf8 {[%emt 0:02:08]} 29. Bh3 {[%emt 0:01:27]} Bc7 {[%emt 0:04:14]} 30. Bg5+ {[%emt 0:04:20]} f6 {[%emt 0:01:21]} 31. Be3 {[%emt 0:01:42]} Ne6 {[%emt 0:00:12]} 32. f3 {[%emt 0:02:05]} g6 {[%emt 0:02:32]} 33. Kd2 {[%emt 0:07:43]} Bd8 {[%emt 0:08:13]} 34. Ke2 {[%emt 0:07:55]} Bc7 {[%emt 0:00:43]} 35. Kd3 {[%emt 0:02:11]} Kf7 {[%emt 0:12:30]} 36. Kc4 {[%emt 0:02:29]} b5+ {[%emt 0:02:50]} 37. Kd3 {[%emt 0:00:22]} Ke7 {[%emt 0:00:55]} 38. a4 {[%emt 0:05:49]} Bd6 {[%emt 0:05:21]} 39. Bxe6 {[%emt 0:03:33]} Kxe6 {[%emt 0:00:44]} 40. Bb6 {[%emt 0:00:24]} Kd7 {[%emt 0:06:21]} 41. Bxa5 {[%emt 0:33:08]} Bc5 {[%emt 0:30:12]} 42. Ke2 {[%emt 0:00:28]} f5 {[%emt 0:07:56]} 43. exf5 {[%emt 0:04:02]} gxf5 {[%emt 0:00:08]} 44. Bb4 {[%emt 0:00:43]} Ba7 {[%emt 0:01:11]} 45. c4 {[%emt 0:03:07]} bxa4 {[%emt 0:00:00]} 46. bxa4 {[%emt 0:00:00]} Bd4 {[%emt 0:00:00]} 47. Be1 {[%emt 0:00:00]} e4 {[%emt 0:00:00]} 48. fxe4 {[%emt 0:00:00]} fxe4 {[%emt 0:00:00]} 49. Bf2 {[%emt 0:00:00]} c5 {[%emt 0:00:00]} 50. Be1 {[%emt 0:00:00]} Kc6 {[%emt 0:00:00]} 51. Kf1 {[%emt 0:00:00]} Bb2 {[%emt 0:00:00]} 52. Kf2 {[%emt 0:00:00]} Bc1 {[%emt 0:00:00]} 53. Ke2 {[%emt 0:00:00]} Kb6 {[%emt 0:00:00]} 54. Bd2 {[%emt 0:00:00]} Ba3 {[%emt 0:00:00]} 55. Ke3 {[%emt 0:11:30]} Bb4 {[%emt 0:00:00]} 56. Bxb4 {[%emt 0:02:38]} cxb4 {[%emt 0:00:00]} 57. Kxe4 {[%emt 0:00:11]} Ka5 {[%emt 0:00:00]} 58. c5 {[%emt 0:02:18]} b3 {[%emt 0:00:00]} 59. Kd3 {[%emt 0:00:23]} Kxa4 {[%emt 0:00:00]} 60. c6 {[%emt 0:00:31]} Ka3 {[%emt 0:00:00]} 61. c7 {[%emt 0:00:54]} b2 {[%emt 0:00:00]} 62. c8=Q {[%emt 0:00:18]} b1=Q+ {[%emt 0:00:00]} 63. Qc2 {[%emt 0:03:09]} Qb5+ {[%emt 0:00:00]} 64. Qc4 {[%emt 0:02:02]} Qf5+ {[%emt 0:00:00]} 65. Ke3 {[%emt 0:00:57]} Qe5+ {[%emt 0:00:00]} 66. Kf3 {[%emt 0:00:34]} Qf6+ {[%emt 0:00:00]} 67. Qf4 {[%emt 0:00:33]} Qc6+ {[%emt 0:00:00]} 68. Ke3 {[%emt 0:01:05]} Qe6+ {[%emt 0:01:06]} 69. Kd4 {[%emt 0:00:22]} Qg6 {[%emt 0:01:59]} 70. Ke5 {[%emt 0:03:08]} Ka2 {[%emt 0:01:59]} 71. Qg5 {[%emt 0:00:45]} Qe8+ {[%emt 0:00:12]} 72. Kf6 {[%emt 0:00:15]} Qf8+ {[%emt 0:00:31]} 73. Kg6 {[%emt 0:00:27]} Qe8+ {[%emt 0:00:14]} 74. Kg7 {[%emt 0:00:14]} Qd7+ {[%emt 0:00:49]} 75. Kh6 {[%emt 0:00:29]} Qe8 {[%emt 0:00:24]} 76. Kh7 {[%emt 0:01:08]} Qf7+ {[%emt 0:01:12]} 77. Qg7 {[%emt 0:00:36]} Qf3 {[%emt 0:00:55]} 78. Kh6 {[%emt 0:00:38]} Ka3 {[%emt 0:03:20]} 79. Qe5 {[%emt 0:00:00]} Qf7 {[%emt 0:00:37]} 80. Kg5 {[%emt 0:00:00]} Qh7 {[%emt 0:00:32]} 81. Qd6+ {[%emt 0:00:43]} Ka2 {[%emt 0:00:31]} 82. Qa6+ {[%emt 0:00:25]} Kb2 {[%emt 0:00:15]} 83. Qe2+ {[%emt 0:00:28]} Ka3 {[%emt 0:00:51]} 84. Qxh5 {[%emt 0:00:31]} Qe7+ {[%emt 0:00:15]} 85. Kf4 {[%emt 0:00:45]} Qb4+ {[%emt 0:00:43]} 86. Kf3 {[%emt 0:00:30]} Qb7+ {[%emt 0:01:47]} 87. Kf2 {[%emt 0:00:17]} Qb2+ {[%emt 0:01:26]} 88. Qe2 {[%emt 0:00:17]} Qg7 {[%emt 0:00:35]} 89. g4 {[%emt 0:00:41]} Kb4 {[%emt 0:00:18]} 90. Qe4+ {[%emt 0:00:43]} Kc5 {[%emt 0:00:12]} 91. h5 {[%emt 0:01:04]} Kd6 {[%emt 0:00:37]} 92. Qf4+ {[%emt 0:00:30]} Ke6 {[%emt 0:00:24]} 93. Kf3 {[%emt 0:01:25]} Qa1 {[%emt 0:00:32]} 94. Kg3 {[%emt 0:01:34]} Qe1+ {[%emt 0:01:41]} 95. Qf2 {[%emt 0:00:30]} Qe4 {[%emt 0:01:05]} 96. Kh4 {[%emt 0:00:38]} Qe5 {[%emt 0:00:45]} 97. Qg3 {[%emt 0:00:53]} Qd5 {[%emt 0:00:28]} 98. Qe3+ {[%emt 0:00:51]} Kf7 {[%emt 0:00:10]} 99. Qf4+ {[%emt 0:00:09]} Ke8 {[%emt 0:00:56]} 100. Qf5 {[%emt 0:00:52]} Qd2 {[%emt 0:00:27]} 101. Qe5+ {[%emt 0:00:57]} Kf7 {[%emt 0:00:13]} 102. Qc7+ {[%emt 0:00:40]} Kf6 {[%emt 0:00:47]} 103. Qc6+ {[%emt 0:00:59]} Kf7 {[%emt 0:00:20]} 104. Qe4 {[%emt 0:00:41]} Kg7 {[%emt 0:00:51]} 105. Qe7+ {[%emt 0:00:34]} Kh8 {[%emt 0:00:01]} 106. Qe5+ {[%emt 0:00:49]} Kh7 {[%emt 0:00:05]} 107. Kg3 {[%emt 0:01:24]} Qd3+ {[%emt 0:00:26]} 108. Kf4 {[%emt 0:00:11]} Qd2+ {[%emt 0:00:48]} 109. Kf5 {[%emt 0:00:15]} Qd7+ {[%emt 0:00:42]} 110. Qe6 {[%emt 0:00:42]} Qb5+ {[%emt 0:00:39]} 111. Kf6 {[%emt 0:00:34]} Qb2+ {[%emt 0:00:23]} 112. Ke7 {[%emt 0:00:34]} Qb4+ {[%emt 0:00:52]} 113. Kf7 {[%emt 0:00:14]} Qb7+ {[%emt 0:00:29]} 114. Qe7 {[%emt 0:00:21]} Qf3+ {[%emt 0:00:33]} 115. Ke6+ {[%emt 0:00:31]} Kg8 {[%emt 0:00:33]} 116. Qg5+ {[%emt 0:00:17]} Kh7 {[%emt 0:00:32]} 1-0